bitfinex/quotes_BTCUSD_20250518
["timestamp","ask_amount","ask_price","bid_price","bid_amount"]
[1747556483912,6.27307195,103870.0,103860.0,0.2499956]
[1747556486424,6.19601179,103870.0,103860.0,0.2499956]
[1747556487041,6.07919684,103870.0,103860.0,0.2499956]
[1747556487752,6.19601179,103870.0,103860.0,0.2499956]
[1747556488366,6.07919684,103870.0,103860.0,0.2499956]
[1747556489730,6.07919684,103870.0,103840.0,0.002]
[1747556489731,0.28958418,103850.0,103840.0,0.002]
[1747556489937,1.00280348,103850.0,103840.0,0.002]
[1747556491802,1.00580348,103850.0,103840.0,0.002]
[1747556492399,1.01080348,103850.0,103840.0,0.002]
[1747556492749,1.08003107,103850.0,103840.0,0.002]
[1747556493637,1.08003107,103850.0,103840.0,0.0019116]
[1747556493856,1.08003107,103850.0,103840.0,0.00182316]
[1747556494385,1.01080348,103850.0,103840.0,0.00182316]
[1747556494586,1.70540348,103850.0,103840.0,0.00182316]
[1747556496668,1.57404768,103850.0,103840.0,0.00182316]
[1747556496910,1.19176768,103850.0,103840.0,0.00182316]
[1747556497120,1.57404768,103850.0,103840.0,0.00182316]
[1747556498178,1.19176768,103850.0,103840.0,0.00182316]
[1747556498322,1.57400768,103850.0,103840.0,0.00182316]
[1747556498520,1.07495273,103850.0,103840.0,0.00182316]
[1747556498726,2.04331273,103850.0,103840.0,0.00182316]
[1747556498946,1.66107273,103850.0,103840.0,0.00182316]
[1747556499159,2.16012768,103850.0,103840.0,0.00182316]
[1747556500559,1.46552768,103850.0,103840.0,0.00182316]
[1747556502208,1.49672768,103850.0,103840.0,0.00182316]
[1747556503269,0.99767273,103850.0,103840.0,0.00182316]
[1747556503487,0.008,103850.0,103840.0,0.28344647]
[1747556503700,0.008,103850.0,103840.0,0.26418728]
[1747556503701,0.03688604,103850.0,103840.0,0.26418728]
[1747556503900,0.20878843,103850.0,103840.0,0.28344665]
[1747556504134,0.22804585,103850.0,103840.0,0.28344665]
[1747556504347,0.02725705,103850.0,103840.0,0.66863665]
[1747556504556,0.01925705,103850.0,103840.0,0.66863665]
[1747556504778,0.02988585,103850.0,103840.0,0.6788038]
[1747556504995,0.02025705,103850.0,103840.0,0.6798038]
[1747556505204,0.02988595,103850.0,103840.0,0.6798038]
[1747556505625,0.03951494,103850.0,103840.0,0.6798038]
[1747556505824,0.03951494,103850.0,103840.0,0.67980389]
[1747556506034,0.03951494,103850.0,103840.0,0.68943344]
[1747556506886,0.04914402,103850.0,103840.0,0.67980389]
[1747556507078,0.03951494,103850.0,103840.0,0.67980389]
[1747556507209,0.03951494,103850.0,103840.0,0.68943344]
[1747556507607,0.03951494,103850.0,103840.0,0.70090363]
[1747556509718,0.04914412,103850.0,103840.0,0.6623847]
[1747556509926,0.03951569,103850.0,103840.0,0.68164426]
[1747556510127,0.03951569,103850.0,103840.0,0.69127381]
[1747556510335,0.23063569,103850.0,103840.0,0.69127381]
[1747556512003,0.22100651,103850.0,103840.0,0.69127381]
[1747556512210,0.22839559,103850.0,103840.0,0.67980362]
[1747556514585,0.23802477,103850.0,103840.0,0.67980362]
[1747556515504,0.4232216,103850.0,103840.0,0.61967425]
[1747556515719,0.43285087,103850.0,103840.0,0.63893362]
[1747556515924,0.44549298,103850.0,103840.0,0.61967443]
[1747556516132,0.4358639,103850.0,103840.0,0.39818031]
[1747556516348,0.58317885,103850.0,103840.0,0.39818031]
[1747556516559,0.6574839,103850.0,103840.0,0.39818031]
[1747556523570,0.4357439,103850.0,103840.0,0.60041441]
[1747556523775,0.4357439,103850.0,103840.0,0.40781051]
[1747556523776,0.2447439,103850.0,103840.0,0.40781051]
[1747556523978,0.2769439,103850.0,103840.0,0.61967443]
[1747556524164,0.4679439,103850.0,103840.0,0.61967453]
[1747556524812,0.4679439,103850.0,103840.0,0.61004461]
[1747556528404,0.20162862,103850.0,103840.0,0.66140398]
[1747556528622,0.21125733,103850.0,103840.0,0.68140398]
[1747556528836,0.001,103850.0,103840.0,0.68140398]
[1747556529039,0.20162843,103850.0,103840.0,0.68140398]
[1747556529249,0.001,103850.0,103840.0,0.68140398]
[1747556529459,0.192,103850.0,103840.0,0.68140398]
[1747556530837,0.001,103850.0,103840.0,0.77871338]
[1747556531227,0.001,103850.0,103840.0,0.80548768]
[1747556534158,0.001,103850.0,103840.0,0.79401749]
[1747556543245,0.01062843,103850.0,103840.0,0.79401749]
[1747556543764,0.01062843,103850.0,103840.0,0.77401749]
[1747556545355,0.001,103850.0,103840.0,0.77401749]
[1747556545606,0.01062843,103850.0,103840.0,0.77401749]
[1747556545798,0.01062843,103850.0,103840.0,0.74191749]
[1747556546706,0.001,103850.0,103840.0,0.74191749]
[1747556547300,0.01062853,103850.0,103840.0,0.74191749]
[1747556548215,0.01062853,103850.0,103840.0,0.73513992]
[1747556548826,0.05325724,103850.0,103840.0,0.73513992]
[1747556549041,0.08495724,103850.0,103840.0,0.73513992]
[1747556550943,0.06288605,103850.0,103840.0,0.73513992]
[1747556551130,0.05325724,103850.0,103840.0,0.73513992]
[1747556551631,0.26791416,103850.0,103840.0,0.50401625]
[1747556551869,0.28717224,103850.0,103840.0,0.71588037]
[1747556552063,0.28717224,103850.0,103840.0,0.72551019]
[1747556553069,0.28717224,103850.0,103840.0,0.74661225]
[1747556553611,0.29680151,103850.0,103840.0,0.74661225]
[1747556553946,0.29680151,103850.0,103840.0,0.7273527]
[1747556554300,0.29680151,103850.0,103840.0,0.73698243]
[1747556555601,0.29680151,103850.0,103840.0,0.74661207]
[1747556556622,0.28717224,103850.0,103840.0,0.74661207]
[1747556558432,0.28717224,103850.0,103840.0,0.75624162]
[1747556559161,0.28717214,103850.0,103840.0,0.75624162]
[1747556559596,0.09458669,103850.0,103840.0,0.75624162]
[1747556560063,0.09458669,103850.0,103840.0,0.74476929]
[1747556560424,0.0945866,103850.0,103840.0,0.74476929]
[1747556564620,0.08495761,103850.0,103840.0,0.74476929]
[1747556564804,0.0945866,103850.0,103840.0,0.74476929]
[1747556566604,0.05095789,103850.0,103840.0,0.74476929]
[1747556567905,0.0605866,103850.0,103840.0,0.74476929]
[1747556568926,0.05095761,103850.0,103840.0,0.74476929]
[1747556569565,0.08205761,103850.0,103840.0,0.74476929]
[1747556573139,0.08205761,103850.0,103840.0,0.72875586]
[1747556573769,0.0628,103850.0,103840.0,0.74023696]
[1747556573970,0.23172825,103860.0,103840.0,0.74023696]
[1747556574120,0.04072788,103860.0,103840.0,0.69427076]
[1747556574322,0.031,103850.0,103840.0,0.59696136]
[1747556574530,0.0621,103850.0,103840.0,0.59696136]
[1747556575316,0.07172843,103850.0,103840.0,0.59696136]
[1747556575758,0.07172843,103850.0,103840.0,0.59496136]
[1747556576219,0.07172843,103850.0,103840.0,0.59796136]
[1747556576426,0.07172843,103850.0,103840.0,0.59696136]
[1747556576668,0.07172843,103850.0,103840.0,0.57965725]
[1747556576908,0.07172843,103850.0,103840.0,0.58065725]
[1747556577085,0.07272843,103850.0,103840.0,0.58265725]
[1747556577850,0.08235705,103850.0,103840.0,0.58265725]
[1747556579308,0.07272843,103850.0,103840.0,0.58648026]
[1747556579893,0.032,103850.0,103840.0,0.58648026]
[1747556580249,0.001,103850.0,103840.0,0.74588966]
[1747556580390,0.001,103850.0,103840.0,1.08588966]
[1747556581841,0.001,103850.0,103840.0,1.10043051]
[1747556582285,0.001,103850.0,103840.0,1.11043051]
[1747556582722,0.001,103850.0,103840.0,1.1051264]
[1747556582935,0.002,103870.0,103860.0,0.28675082]
[1747556583151,0.002,103870.0,103860.0,0.57482022]
[1747556583393,0.002,103870.0,103860.0,0.99800022]
[1747556583808,0.002,103870.0,103860.0,1.00716737]
[1747556584013,0.002,103870.0,103860.0,0.97406737]
[1747556584656,0.002,103870.0,103860.0,0.94186737]
[1747556584871,0.002,103870.0,103860.0,0.9571337]
[1747556585081,0.002,103870.0,103860.0,0.9581337]
[1747556586990,0.0629,103870.0,103860.0,0.6700643]
[1747556587229,0.08215344,103870.0,103860.0,0.6700643]
[1747556587427,0.09178048,103870.0,103860.0,0.6700643]
[1747556588885,0.08215344,103870.0,103860.0,0.6700643]
[1747556589834,0.09178039,103870.0,103860.0,0.49027698]
[1747556590061,0.08215344,103870.0,103860.0,0.51916089]
[1747556591191,0.08215344,103870.0,103860.0,0.51533356]
[1747556593919,0.08215335,103870.0,103860.0,0.51533356]
[1747556594158,0.07252658,103870.0,103860.0,0.51533356]
[1747556594400,0.002,103870.0,103860.0,0.51533356]
[1747556594652,0.002,103870.0,103860.0,0.61264296]
[1747556595135,0.002,103870.0,103860.0,0.83642296]
[1747556597079,0.002,103870.0,103860.0,0.88376381]
[1747556597529,0.002,103870.0,103860.0,0.89903014]
[1747556597942,0.002,103870.0,103860.0,0.89803014]
[1747556598355,0.003,103870.0,103860.0,0.90103014]
[1747556598575,0.003,103870.0,103860.0,0.90303014]
[1747556599037,0.003,103870.0,103860.0,0.87023014]
[1747556600716,0.003,103870.0,103860.0,0.85879114]
[1747556604066,0.003,103870.0,103860.0,0.66767137]
[1747556604267,0.003,103870.0,103860.0,0.86023828]
[1747556608134,0.003,103870.0,103860.0,0.82713828]
[1747556615362,0.0351,103870.0,103860.0,0.82713828]
[1747556615660,0.003,103870.0,103860.0,0.81187195]
[1747556616354,0.003,103870.0,103860.0,1.15187195]
[1747556616571,0.003,103870.0,103860.0,1.21287195]
[1747556618138,0.003,103870.0,103860.0,1.51469195]
[1747556618343,0.0673,103890.0,103880.0,0.22140819]
[1747556618344,0.0341,103890.0,103880.0,0.22140819]
[1747556618544,0.0341,103890.0,103880.0,0.50919759]
[1747556618748,0.0341,103890.0,103880.0,0.53364359]
[1747556618954,0.0673,103890.0,103880.0,0.53364359]
[1747556619416,0.0673,103890.0,103880.0,1.10620359]
[1747556619636,0.06734717,103890.0,103880.0,1.10720359]
[1747556622205,0.06734717,103890.0,103880.0,1.09192474]
[1747556624766,0.06734717,103890.0,103880.0,1.14002474]
[1747556628676,0.06734717,103890.0,103880.0,1.15528579]
[1747556636079,0.03414717,103890.0,103880.0,1.15528579]
[1747556636892,0.03414717,103890.0,103880.0,1.15428579]
[1747556637089,0.06574717,103890.0,103880.0,1.15428579]
[1747556637247,0.06574717,103890.0,103880.0,1.15628579]
[1747556637648,0.06574717,103890.0,103880.0,1.15728579]
[1747556637847,0.06574717,103890.0,103880.0,0.96680579]
[1747556638047,0.06574717,103890.0,103880.0,1.15708579]
[1747556642205,0.00204717,103890.0,103880.0,1.58692664]
[1747556642635,0.00204717,103890.0,103880.0,1.61580264]
[1747556642877,0.00021351,103890.0,103880.0,1.62580264]
[1747556643084,0.19224,103910.0,103900.0,0.22136557]
[1747556643294,0.002,103910.0,103900.0,0.89116497]
[1747556643499,0.002,103910.0,103900.0,1.09594582]
[1747556643709,0.002,103910.0,103900.0,1.12834582]
[1747556643911,0.002,103910.0,103900.0,1.19928297]
[1747556644562,0.012,103910.0,103900.0,1.21390162]
[1747556644780,0.012,103910.0,103900.0,1.21490162]
[1747556645198,0.01204728,103910.0,103900.0,1.20028297]
[1747556645608,0.01204728,103910.0,103900.0,1.23075545]
[1747556645822,0.25254,103920.0,103910.0,0.56134427]
[1747556646035,0.25254,103920.0,103910.0,1.27920367]
[1747556646457,0.0623,103920.0,103910.0,1.27920367]
[1747556646880,0.2525,103920.0,103910.0,1.27920367]
[1747556647086,0.2535,103920.0,103910.0,1.28837082]
[1747556647289,0.2535,103920.0,103910.0,1.30359704]
[1747556647719,0.0633,103920.0,103910.0,1.30359704]
[1747556647939,0.2225,103920.0,103910.0,1.30359704]
[1747556648143,0.2235,103920.0,103910.0,1.31327897]
[1747556648350,0.2561,103920.0,103910.0,1.31327897]
[1747556648550,0.2541,103920.0,103910.0,1.31327897]
[1747556648873,0.2541,103920.0,103910.0,1.30459704]
[1747556649171,0.2641,103920.0,103910.0,1.30459704]
[1747556649567,0.25706,103920.0,103910.0,1.30459704]
[1747556649970,0.24743,103920.0,103910.0,1.30559704]
[1747556650932,0.05723,103920.0,103910.0,1.30559704]
[1747556651105,0.2328,103920.0,103910.0,1.30559704]
[1747556652487,0.2328,103920.0,103910.0,0.96559704]
[1747556653052,0.073,103920.0,103910.0,0.96559704]
[1747556653255,0.2632,103920.0,103910.0,0.96559704]
[1747556653602,0.073,103920.0,103910.0,0.96559704]
[1747556653810,0.2632,103920.0,103910.0,0.96559704]
[1747556654093,0.073,103920.0,103910.0,0.96559704]
[1747556654307,0.2632,103920.0,103910.0,0.96559704]
[1747556655298,0.073,103920.0,103910.0,0.96559704]
[1747556655506,0.2002,103920.0,103910.0,0.96559704]
[1747556655845,0.01,103920.0,103910.0,0.98013789]
[1747556656049,0.01,103920.0,103910.0,1.01293789]
[1747556656655,0.01,103920.0,103910.0,1.01193789]
[1747556657063,0.01,103920.0,103910.0,1.07650489]
[1747556657518,0.01,103920.0,103910.0,1.07250489]
[1747556657960,0.01,103920.0,103910.0,1.07750489]
[1747556659436,0.01,103920.0,103910.0,1.49160489]
[1747556660065,0.01,103920.0,103910.0,1.45660489]
[1747556660267,0.01,103920.0,103910.0,1.48770489]
[1747556660504,0.01,103920.0,103910.0,1.42610489]
[1747556660714,0.01,103920.0,103910.0,1.79660489]
[1747556660924,0.01,103920.0,103910.0,1.82770489]
[1747556661133,0.01,103920.0,103910.0,1.95622489]
[1747556663022,0.01,103920.0,103910.0,1.94099867]
[1747556663844,0.01,103920.0,103910.0,2.00249867]
[1747556664258,0.002,103930.0,103920.0,0.57586381]
[1747556664466,0.002,103930.0,103920.0,1.24558321]
[1747556664879,0.002,103930.0,103920.0,1.27444821]
[1747556665486,0.002,103930.0,103920.0,1.28361536]
[1747556665914,0.002,103930.0,103920.0,1.31571536]
[1747556666122,0.002,103930.0,103920.0,1.28461536]
[1747556666809,0.002,103930.0,103920.0,1.28361536]
[1747556667314,0.003,103930.0,103920.0,1.28761536]
[1747556667528,0.003,103930.0,103920.0,1.12887976]
[1747556668050,0.013,103930.0,103920.0,1.12887976]
[1747556668435,0.013,103930.0,103920.0,1.57184699]
[1747556670009,0.01347291,103930.0,103920.0,1.57184699]
[1747556673246,0.01347291,103930.0,103920.0,1.61304699]
[1747556674589,0.01347291,103930.0,103920.0,1.58184699]
[1747556675398,0.01347291,103930.0,103920.0,1.64304699]
[1747556676016,0.01347291,103930.0,103920.0,1.61304699]
[1747556676220,0.01347291,103930.0,103920.0,1.58184699]
[1747556676599,0.01347291,103930.0,103920.0,1.64304699]
[1747556676990,0.01347291,103930.0,103920.0,1.74434699]
[1747556677543,0.01347291,103930.0,103920.0,1.75434699]
[1747556677750,0.01347291,103930.0,103920.0,1.81213699]
[1747556678189,0.062,103950.0,103940.0,0.56128038]
[1747556678388,0.0621365,103950.0,103940.0,1.46954978]
[1747556678750,0.0621365,103950.0,103940.0,1.48409063]
[1747556678951,0.2522965,103950.0,103940.0,1.48409063]
[1747556679516,0.0631365,103950.0,103940.0,1.48409063]
[1747556679725,0.2532965,103950.0,103940.0,1.48409063]
[1747556680131,0.0631365,103950.0,103940.0,1.48409063]
[1747556680391,0.0631365,103950.0,103940.0,1.49325778]
[1747556680680,0.1932965,103950.0,103940.0,1.49325778]
[1747556680910,0.1932965,103950.0,103940.0,1.52211778]
[1747556681293,0.0363365,103950.0,103940.0,1.52211778]
[1747556681529,0.0353365,103950.0,103940.0,1.52511778]
[1747556681664,0.0782365,103950.0,103940.0,1.52911778]
[1747556682298,0.0121365,103950.0,103940.0,1.52911778]
[1747556683334,0.0453365,103950.0,103940.0,1.94321778]
[1747556683531,0.0779365,103950.0,103940.0,1.94321778]
[1747556685742,0.0779365,103950.0,103940.0,1.95294034]
[1747556687175,0.0121365,103950.0,103940.0,2.02754034]
[1747556687372,0.0121365,103950.0,103940.0,2.03754034]
[1747556688835,0.01200845,103950.0,103940.0,2.03754034]
[1747556689045,0.01200845,103950.0,103940.0,2.06798608]
[1747556689271,0.17905577,103960.0,103950.0,0.57579994]
[1747556689405,0.17905577,103960.0,103950.0,1.24540934]
[1747556689616,0.24485577,103960.0,103950.0,1.24540934]
[1747556689824,0.24485577,103960.0,103950.0,1.27426634]
[1747556690227,0.25592,103960.0,103950.0,1.27426634]
[1747556690422,0.0658,103960.0,103950.0,1.27426634]
[1747556690672,0.25592,103960.0,103950.0,1.27426634]
[1747556690827,0.25592,103960.0,103950.0,1.27626634]
[1747556691026,0.25592,103960.0,103950.0,1.27726634]
[1747556691546,0.0658,103960.0,103950.0,1.28643349]
[1747556691749,0.0758,103960.0,103950.0,1.28643349]
[1747556692453,0.0758,103960.0,103950.0,1.70053349]
[1747556695897,0.0758,103960.0,103950.0,1.89101349]
[1747556696096,0.01,103960.0,103950.0,1.89101349]
[1747556696612,0.0709,103960.0,103950.0,1.89101349]
[1747556697270,0.0709,103960.0,103950.0,1.88901349]
[1747556697558,0.0709,103960.0,103950.0,1.89101349]
[1747556697710,0.0709,103960.0,103950.0,1.89401349]
[1747556699857,0.0709,103960.0,103950.0,1.70353349]
[1747556700057,0.0709,103960.0,103950.0,1.66013564]
[1747556700266,0.08051834,103960.0,103950.0,1.32013564]
[1747556700428,0.09013696,103960.0,103950.0,1.32013564]
[1747556700833,0.29213753,103960.0,103950.0,0.89641628]
[1747556701038,0.30175652,103960.0,103950.0,0.79910688]
[1747556701239,0.10937484,103960.0,103950.0,0.80872624]
[1747556701445,0.10001712,103960.0,103950.0,0.80872624]
[1747556701669,0.10001703,103960.0,103950.0,0.80872624]
[1747556702029,0.10001703,103960.0,103950.0,0.80572624]
[1747556702447,0.09013686,103960.0,103950.0,0.80672624]
[1747556702569,0.28249677,103960.0,103950.0,0.80672624]
[1747556702773,0.29211539,103960.0,103950.0,0.80672624]
[1747556702969,0.28249677,103960.0,103950.0,0.80672624]
[1747556703226,0.29211529,103960.0,103950.0,0.80672624]
[1747556703481,0.28249677,103960.0,103950.0,0.81513724]
[1747556703680,0.28249677,103960.0,103950.0,0.81613724]
[1747556704087,0.29211539,103960.0,103950.0,0.81613724]
[1747556704666,0.29211529,103960.0,103950.0,0.81613724]
[1747556705694,0.28249677,103960.0,103950.0,0.81613724]
[1747556705946,0.27287834,103960.0,103950.0,0.81613724]
[1747556706148,0.27287825,103960.0,103950.0,0.81613724]
[1747556706503,0.26326,103960.0,103950.0,0.83135191]
[1747556706833,0.0709,103960.0,103950.0,0.83135191]
[1747556706966,0.26326,103960.0,103950.0,0.92866131]
[1747556707180,0.0709,103960.0,103950.0,0.92866131]
[1747556707380,0.26326,103960.0,103950.0,0.92866131]
[1747556710246,0.26326,103960.0,103950.0,0.91725031]
[1747556710911,0.0709,103960.0,103950.0,0.91725031]
[1747556711122,0.26326,103960.0,103950.0,0.91725031]
[1747556711353,0.27287825,103960.0,103950.0,0.91725031]
[1747556711581,0.28249659,103960.0,103950.0,0.91725031]
[1747556711812,0.47487827,103960.0,103950.0,0.89801132]
[1747556712050,0.49411596,103960.0,103950.0,0.81032165]
[1747556712269,0.49411596,103960.0,103950.0,0.8199411]
[1747556712504,0.48449716,103960.0,103950.0,0.82956046]
[1747556712721,0.48449707,103960.0,103950.0,0.82956046]
[1747556712932,0.28249677,103960.0,103950.0,0.8199411]
[1747556713165,0.49411614,103960.0,103950.0,0.81994128]
[1747556713388,0.49411614,103960.0,103950.0,0.81032174]
[1747556714017,0.49411614,103960.0,103950.0,0.81994147]
[1747556714244,0.48449725,103960.0,103950.0,0.82956092]
[1747556714470,0.49411605,103960.0,103950.0,0.83918046]
[1747556714699,0.49411605,103960.0,103950.0,0.82956101]
[1747556714898,0.48449725,103960.0,103950.0,0.83918046]
[1747556715039,0.48449725,103960.0,103950.0,0.82956055]
[1747556715270,0.48449725,103960.0,103950.0,0.83917991]
[1747556715667,0.49411596,103960.0,103950.0,0.81032156]
[1747556715872,0.49411596,103960.0,103950.0,0.8313601]
[1747556716319,0.49411596,103960.0,103950.0,0.84097946]
[1747556716320,0.48449725,103960.0,103950.0,0.84097946]
[1747556716726,0.48449725,103960.0,103950.0,0.8313601]
[1747556717246,0.48449725,103960.0,103950.0,0.84097946]
[1747556717382,0.49411605,103960.0,103950.0,0.8313601]
[1747556717581,0.49411605,103960.0,103950.0,0.83136019]
[1747556718231,0.49411605,103960.0,103950.0,0.84097964]
[1747556718964,0.48449725,103960.0,103950.0,0.82576497]
[1747556719910,0.48449725,103960.0,103950.0,0.83538433]
[1747556720369,0.48449725,103960.0,103950.0,0.59488624]
[1747556720370,0.48449771,103960.0,103950.0,0.59488624]
[1747556720597,0.65243543,103960.0,103950.0,0.59488624]
[1747556721529,0.65243543,103960.0,103950.0,0.59388624]
[1747556721732,0.65543543,103960.0,103950.0,0.59288624]
[1747556722144,0.65543543,103960.0,103950.0,0.58146715]
[1747556722526,0.75274483,103960.0,103950.0,0.58146715]
[1747556723572,0.75274483,103960.0,103950.0,0.5723]
[1747556725024,1.02966483,103960.0,103950.0,0.5723]
[1747556727363,0.96869085,103960.0,103950.0,0.5723]
[1747556729553,1.15945085,103960.0,103950.0,0.5723]
[1747556730617,1.04286859,103960.0,103950.0,0.5723]
[1747556730834,1.15945085,103960.0,103950.0,0.5723]
[1747556731059,1.04286859,103960.0,103950.0,0.5723]
[1747556731306,1.15945085,103960.0,103950.0,0.5723]
[1747556732220,0.65974859,103960.0,103950.0,0.5723]
[1747556732451,0.85214859,103960.0,103950.0,0.5723]
[1747556732666,0.57205827,103960.0,103950.0,0.5723]
[1747556732888,0.57205827,103960.0,103950.0,0.58143602]
[1747556733087,0.76281827,103960.0,103950.0,0.58143602]
[1747556734482,0.75319965,103960.0,103950.0,0.58143602]
[1747556736783,0.56243965,103960.0,103950.0,0.58143602]
[1747556736980,0.75319965,103960.0,103950.0,0.58143602]
[1747556737193,0.74358076,103960.0,103950.0,0.58143602]
[1747556738492,0.86016302,103960.0,103950.0,0.58143602]
[1747556740320,0.74358076,103960.0,103950.0,0.58143602]
[1747556740749,0.86016302,103960.0,103950.0,0.58143602]
[1747556740932,0.74358076,103960.0,103950.0,0.58143602]
[1747556741325,0.73396168,103960.0,103950.0,0.58143602]
[1747556742902,0.54320168,103960.0,103950.0,0.58143602]
[1747556743121,0.73396168,103960.0,103950.0,0.58143602]
[1747556743763,0.54320168,103960.0,103950.0,0.58143602]
[1747556743987,0.74358011,103960.0,103950.0,0.78345603]
[1747556744185,0.76281743,103960.0,103950.0,0.77383621]
[1747556744406,0.76281743,103960.0,103950.0,0.78345612]
[1747556744839,0.77243632,103960.0,103950.0,0.79487521]
[1747556745062,0.22461863,103960.0,103950.0,0.6304596]
[1747556745292,0.20376,103960.0,103950.0,0.71319859]
[1747556746143,0.21037825,103960.0,103950.0,0.71319859]
[1747556746617,0.21137825,103960.0,103950.0,0.71319859]
[1747556746805,0.20176,103960.0,103950.0,0.71319859]
[1747556748689,0.21137825,103960.0,103950.0,0.71319859]
[1747556749340,0.20176,103960.0,103950.0,0.71319859]
[1747556750228,0.20176,103960.0,103950.0,0.81050799]
[1747556750918,0.20176,103960.0,103950.0,0.74700799]
[1747556750919,0.21137834,103960.0,103950.0,0.74700799]
[1747556751344,0.21137825,103960.0,103950.0,0.74700799]
[1747556751792,0.20176,103960.0,103950.0,0.74700799]
[1747556751968,0.21137834,103960.0,103950.0,0.74700799]
[1747556752148,0.20176,103960.0,103950.0,0.74700799]
[1747556752358,0.21137834,103960.0,103950.0,0.74700799]
[1747556752744,0.21137825,103960.0,103950.0,0.74700799]
[1747556753796,0.41337827,103960.0,103950.0,0.74700808]
[1747556754006,0.43261532,103960.0,103950.0,0.75662762]
[1747556754185,0.487598,103960.0,103950.0,0.4284395]
[1747556754410,0.487598,103960.0,103950.0,0.4380595]
[1747556754612,0.4875979,103960.0,103950.0,0.64969942]
[1747556755026,0.49721698,103960.0,103950.0,0.4284395]
[1747556755268,0.48759836,103960.0,103950.0,0.4284395]
[1747556755892,0.48759836,103960.0,103950.0,0.4380595]
[1747556756637,0.47797928,103960.0,103950.0,0.4380595]
[1747556756899,0.48759836,103960.0,103950.0,0.4380595]
[1747556758080,0.47797928,103960.0,103950.0,0.4284395]
[1747556758302,0.48759827,103960.0,103950.0,0.4380595]
[1747556758750,0.48759827,103960.0,103950.0,0.44767941]
[1747556760483,0.48759827,103960.0,103950.0,0.4284395]
[1747556760694,0.49721735,103960.0,103950.0,0.4284395]
[1747556760897,0.47797928,103960.0,103950.0,0.63045951]
[1747556761051,0.47797928,103960.0,103950.0,0.62083969]
[1747556761259,0.48759827,103960.0,103950.0,0.6304596]
[1747556761440,0.48759827,103960.0,103950.0,0.64007942]
[1747556761640,0.48759827,103960.0,103950.0,0.6304596]
[1747556762070,0.48759827,103960.0,103950.0,0.64007942]
[1747556763060,0.48759827,103960.0,103950.0,0.6304596]
[1747556763307,0.48759827,103960.0,103950.0,0.64007942]
[1747556763735,0.47797928,103960.0,103950.0,0.64969915]
[1747556764177,0.47733928,103960.0,103950.0,0.64007942]
[1747556764654,0.47733928,103960.0,103950.0,0.64969915]
[1747556766384,0.47733928,103960.0,103950.0,0.6304596]
[1747556766794,0.47733928,103960.0,103950.0,0.64969915]
[1747556767506,0.48695771,103960.0,103950.0,0.64969915]
[1747556767711,0.48695771,103960.0,103950.0,0.67453345]
[1747556767918,0.48695771,103960.0,103950.0,0.66491382]
[1747556768262,0.48695771,103960.0,103950.0,0.67453345]
[1747556768655,0.46772011,103960.0,103950.0,0.66491382]
[1747556768861,0.47733882,103960.0,103950.0,0.67453345]
[1747556769480,0.48695762,103960.0,103950.0,0.67453345]
[1747556771083,0.48695762,103960.0,103950.0,0.66311436]
[1747556772453,0.48695762,103960.0,103950.0,0.65349473]
[1747556772854,0.49657661,103960.0,103950.0,0.643875]
[1747556773057,0.49657651,103960.0,103950.0,0.643875]
[1747556773303,0.48695762,103960.0,103950.0,0.65349463]
[1747556773701,0.49657661,103960.0,103950.0,0.63425518]
[1747556773918,0.48695762,103960.0,103950.0,0.65349454]
[1747556774064,0.47733882,103960.0,103950.0,0.66311408]
[1747556774270,0.47733882,103960.0,103950.0,0.65349454]
[1747556774843,0.47733882,103960.0,103950.0,0.64387491]
[1747556775015,0.48695771,103960.0,103950.0,0.64387491]
[1747556775418,0.47733882,103960.0,103950.0,0.64387491]
[1747556775598,0.48695771,103960.0,103950.0,0.65349454]
[1747556776502,0.47733882,103960.0,103950.0,0.65349454]
[1747556777377,0.48695771,103960.0,103950.0,0.65349454]
[1747556777575,0.48695771,103960.0,103950.0,0.64387491]
[1747556777932,0.48695771,103960.0,103950.0,0.43223508]
[1747556778133,0.59392182,103960.0,103950.0,0.43223508]
[1747556780072,0.88135122,103960.0,103950.0,0.43223508]
[1747556781259,0.88135122,103960.0,103950.0,0.41702041]
[1747556781759,0.89565291,103960.0,103950.0,0.41702041]
[1747556783195,1.01223517,103960.0,103950.0,0.41702041]
[1747556784790,1.02677602,103960.0,103950.0,0.41702041]
[1747556785023,1.02677602,103960.0,103950.0,0.40788439]
[1747556785703,0.7926115,103960.0,103950.0,0.40788439]
[1747556785990,1.02777602,103960.0,103950.0,0.40788439]
[1747556786466,0.78067065,103960.0,103950.0,0.40788439]
[1747556786677,0.51841291,103960.0,103950.0,0.40788439]
[1747556786891,0.70857291,103960.0,103950.0,0.40788439]
[1747556787339,0.51841291,103960.0,103950.0,0.40788439]
[1747556787548,1.01771517,103960.0,103950.0,0.40788439]
[1747556788396,0.38752896,103960.0,103950.0,0.40788439]
[1747556788603,0.88679122,103960.0,103950.0,0.40788439]
[1747556789211,0.50411122,103960.0,103950.0,0.40788439]
[1747556789418,0.69427122,103960.0,103950.0,0.40788439]
[1747556790903,0.82552206,103960.0,103950.0,0.40788439]
[1747556795235,1.01724206,103960.0,103950.0,0.40788439]
[1747556795453,0.9022198,103960.0,103950.0,0.40788439]
[1747556795858,0.9021798,103960.0,103950.0,0.40788439]
[1747556805379,1.1791398,103960.0,103950.0,0.40788439]
[1747556805579,1.29572206,103960.0,103950.0,0.40788439]
[1747556805800,1.1791398,103960.0,103950.0,0.40788439]
[1747556808752,1.29572206,103960.0,103950.0,0.40788439]
[1747556809725,1.65026291,103960.0,103950.0,0.40788439]
[1747556810353,1.65026291,103960.0,103950.0,0.20978201]
[1747556810725,1.41709839,103960.0,103950.0,0.20978201]
[1747556810932,1.65026291,103960.0,103950.0,0.20978201]
[1747556818429,1.41709839,103960.0,103950.0,0.20978201]
[1747556818639,1.65026291,103960.0,103950.0,0.20978201]
[1747556820573,1.41709839,103960.0,103950.0,0.20978201]
[1747556821014,1.65026291,103960.0,103950.0,0.20978201]
[1747556823284,1.22549839,103960.0,103950.0,0.20978201]
[1747556823495,1.64886291,103960.0,103950.0,0.20978201]
[1747556830699,1.41569839,103960.0,103950.0,0.20978201]
[1747556830930,1.64886291,103960.0,103950.0,0.20978201]
[1747556833417,1.45866291,103960.0,103950.0,0.20978201]
[1747556833640,1.64894291,103960.0,103950.0,0.20978201]
[1747556834256,1.41577839,103960.0,103950.0,0.20978201]
[1747556834460,1.64894291,103960.0,103950.0,0.20978201]
[1747556834734,1.41577839,103960.0,103950.0,0.20978201]
[1747556834952,1.64894291,103960.0,103950.0,0.20978201]
[1747556835612,1.86283457,103960.0,103950.0,0.20978201]
[1747556835820,1.74625231,103960.0,103950.0,0.20978201]
[1747556836926,1.74617231,103960.0,103950.0,0.20978201]
[1747556837127,1.64886291,103960.0,103950.0,0.20978201]